[Event "Early-Titled-Tuesday-Blitz-January-23-2024"]
[Site "Chess.com"]
[Date "2024.01.23"]
[Round "2"]
[White "tigurones"]
[Black "AlexTruskavetsky"]
[Result "0-1"]
[WhiteElo "2374"]
[BlackElo "2690"]
[TimeControl "180+1"]
[EndTime "8:17:52 PST"]
[Termination "AlexTruskavetsky won by checkmate"]

1. d4 {[%clk 0:03:00.9]} 1... Nf6 {[%clk 0:03:00]} 2. Nf3 {[%clk 0:03:00.8]}
2... e6 {[%clk 0:03:00.4]} 3. Bf4 {[%clk 0:02:57.8]} 3... d5 {[%clk 0:02:59.7]}
4. e3 {[%clk 0:02:58.2]} 4... Bd6 {[%clk 0:03:00.1]} 5. Bg3 {[%clk 0:02:57.7]}
5... O-O {[%clk 0:03:00.4]} 6. Bd3 {[%clk 0:02:55.4]} 6... Ne4 {[%clk
0:03:00.8]} 7. Ne5 {[%clk 0:02:46.1]} 7... f6 {[%clk 0:02:59.4]} 8. Bxe4 {[%clk
0:02:45.1]} 8... dxe4 {[%clk 0:02:58.9]} 9. Nc4 {[%clk 0:02:43.9]} 9... b6
{[%clk 0:02:56]} 10. Nbd2 {[%clk 0:02:35.2]} 10... Ba6 {[%clk 0:02:52.3]} 11.
Nxd6 {[%clk 0:02:33.2]} 11... cxd6 {[%clk 0:02:52.6]} 12. Nxe4 {[%clk
0:02:33.3]} 12... d5 {[%clk 0:02:51.8]} 13. Nc3 {[%clk 0:02:24.1]} 13... Qe7
{[%clk 0:02:51.6]} 14. Qd2 {[%clk 0:02:20.8]} 14... Nc6 {[%clk 0:02:48.1]} 15.
Ne2 {[%clk 0:02:18]} 15... Qb4 {[%clk 0:02:46]} 16. c3 {[%clk 0:02:10.7]} 16...
Qb5 {[%clk 0:02:43.2]} 17. a4 {[%clk 0:02:03.8]} 17... Qc4 {[%clk 0:02:42.6]}
18. Nc1 {[%clk 0:02:00.6]} 18... Na5 {[%clk 0:02:42.1]} 19. b4 {[%clk
0:01:52.2]} 19... Nb3 {[%clk 0:02:27.7]} 20. Nxb3 {[%clk 0:01:50.7]} 20... Qxb3
{[%clk 0:02:28.6]} 21. b5 {[%clk 0:01:49.9]} 21... Bb7 {[%clk 0:02:28.8]} 22.
O-O {[%clk 0:01:45.8]} 22... Rfc8 {[%clk 0:02:29.5]} 23. Rfc1 {[%clk 0:01:37.8]}
23... Qc4 {[%clk 0:02:28.3]} 24. Bd6 {[%clk 0:01:34.2]} 24... a6 {[%clk
0:02:28.6]} 25. bxa6 {[%clk 0:01:27]} 25... Rxa6 {[%clk 0:02:29.5]} 26. Bb4
{[%clk 0:01:21.7]} 26... Bc6 {[%clk 0:02:29.7]} 27. Qd1 {[%clk 0:01:14.7]} 27...
Rca8 {[%clk 0:02:28.8]} 28. Qg4 {[%clk 0:01:10.9]} 28... Bd7 {[%clk 0:02:22.2]}
29. Qf4 {[%clk 0:01:02.7]} 29... Qc6 {[%clk 0:02:12.6]} 30. h3 {[%clk
0:00:58.1]} 30... Rxa4 {[%clk 0:02:12]} 31. Rxa4 {[%clk 0:00:57.5]} 31... Rxa4
{[%clk 0:02:10.3]} 32. Qb8+ {[%clk 0:00:57.4]} 32... Be8 {[%clk 0:02:06.6]} 33.
Qd8 {[%clk 0:00:45.7]} 33... Ra8 {[%clk 0:01:59.5]} 34. Qe7 {[%clk 0:00:43.3]}
34... Bg6 {[%clk 0:01:58.6]} 35. Qd6 {[%clk 0:00:26.3]} 35... Qxd6 {[%clk
0:01:53.7]} 36. Bxd6 {[%clk 0:00:26]} 36... Kf7 {[%clk 0:01:53.9]} 37. f4 {[%clk
0:00:25.4]} 37... Ra2 {[%clk 0:01:52.2]} 38. Rf1 {[%clk 0:00:21.5]} 38... Rc2
{[%clk 0:01:45.4]} 39. Bb4 {[%clk 0:00:18.9]} 39... Re2 {[%clk 0:01:36.1]} 40.
Ra1 {[%clk 0:00:18.8]} 40... Be4 {[%clk 0:01:36.2]} 41. Ra7+ {[%clk 0:00:19.1]}
41... Kg6 {[%clk 0:01:34.9]} 42. g4 {[%clk 0:00:18]} 42... f5 {[%clk 0:00:53.5]}
43. g5 {[%clk 0:00:14]} 43... Kh5 {[%clk 0:00:53.1]} 44. Rxg7 {[%clk 0:00:13.1]}
44... Kh4 {[%clk 0:00:53.6]} 45. Rxh7+ {[%clk 0:00:12.4]} 45... Kg3 {[%clk
0:00:54]} 46. Kf1 {[%clk 0:00:11.7]} 46... Rxe3 {[%clk 0:00:54.4]} 47. c4 {[%clk
0:00:09.5]} 47... dxc4 {[%clk 0:00:53.7]} 48. Be1+ {[%clk 0:00:08.7]} 48... Kf3
{[%clk 0:00:51.7]} 49. Bf2 {[%clk 0:00:08.5]} 49... Re2 {[%clk 0:00:51.4]} 50.
Be1 {[%clk 0:00:08.2]} 50... Bd3 {[%clk 0:00:50.7]} 51. g6 {[%clk 0:00:08.5]}
51... Re4+ {[%clk 0:00:49.8]} 52. Kg1 {[%clk 0:00:08.9]} 52... Rxe1+ {[%clk
0:00:50.7]} 53. Kh2 {[%clk 0:00:09.6]} 53... Re2+ {[%clk 0:00:41.8]} 54. Kg1
{[%clk 0:00:09.9]} 54... c3 {[%clk 0:00:41.1]} 55. g7 {[%clk 0:00:09.9]} 55...
Rg2+ {[%clk 0:00:41.6]} 56. Kh1 {[%clk 0:00:09.5]} 56... c2 {[%clk 0:00:42.2]}
57. g8=Q {[%clk 0:00:09.2]} 57... c1=Q# {[%clk 0:00:43.1]} 0-1

[Event "Early-Titled-Tuesday-Blitz-January-23-2024"]
[Site "Chess.com"]
[Date "2024.01.23"]
[Round "2"]
[White "Licancabur"]
[Black "EdmundPlayer"]
[Result "0-1"]
[WhiteElo "2483"]
[BlackElo "2259"]
[TimeControl "180+1"]
[EndTime "8:17:52 PST"]
[Termination "EdmundPlayer won by checkmate"]

1. d4 {[%clk 0:03:00.9]} 1... Nf6 {[%clk 0:02:52.8]} 2. Bg5 {[%clk 0:02:59.7]}
2... e6 {[%clk 0:02:50.8]} 3. e4 {[%clk 0:02:58.4]} 3... h6 {[%clk 0:02:49.7]}
4. Bxf6 {[%clk 0:02:58.1]} 4... Qxf6 {[%clk 0:02:50.6]} 5. c3 {[%clk 0:02:58.4]}
5... Qd8 {[%clk 0:02:50.1]} 6. Nd2 {[%clk 0:02:57.9]} 6... d5 {[%clk 0:02:50.1]}
7. Bd3 {[%clk 0:02:51.4]} 7... Nd7 {[%clk 0:02:40.3]} 8. Qe2 {[%clk 0:02:37.6]}
8... Be7 {[%clk 0:02:34]} 9. Ngf3 {[%clk 0:02:28.3]} 9... dxe4 {[%clk
0:02:32.2]} 10. Nxe4 {[%clk 0:02:27]} 10... O-O {[%clk 0:02:26.4]} 11. O-O
{[%clk 0:02:26.2]} 11... b6 {[%clk 0:02:19]} 12. Neg5 {[%clk 0:01:53.9]} 12...
Bb7 {[%clk 0:02:02.9]} 13. Nxe6 {[%clk 0:01:40.5]} 13... fxe6 {[%clk 0:02:02]}
14. Qxe6+ {[%clk 0:01:40.5]} 14... Kh8 {[%clk 0:01:53.9]} 15. Qg6 {[%clk
0:01:26]} 15... Nf6 {[%clk 0:01:47.1]} 16. Ne5 {[%clk 0:01:22.5]} 16... Bd5
{[%clk 0:01:16.8]} 17. Rae1 {[%clk 0:01:07.1]} 17... Bd6 {[%clk 0:00:57]} 18.
Ng4 {[%clk 0:00:58]} 18... Bg8 {[%clk 0:00:51.8]} 19. Nxh6 {[%clk 0:00:49.3]}
19... Bh7 {[%clk 0:00:32.4]} 20. Nf7+ {[%clk 0:00:27]} 20... Rxf7 {[%clk
0:00:31.8]} 21. Qxf7 {[%clk 0:00:27.2]} 21... Bxd3 {[%clk 0:00:31.3]} 22. Re3
{[%clk 0:00:27.4]} 22... Bh7 {[%clk 0:00:22.2]} 23. Rfe1 {[%clk 0:00:24.9]}
23... Qf8 {[%clk 0:00:20.6]} 24. Qc4 {[%clk 0:00:19.1]} 24... Qg8 {[%clk
0:00:19.9]} 25. Qc6 {[%clk 0:00:18.3]} 25... Qxa2 {[%clk 0:00:17.5]} 26. Qxa8+
{[%clk 0:00:17]} 26... Bg8 {[%clk 0:00:15.9]} 27. b4 {[%clk 0:00:14.7]} 27...
Qd2 {[%clk 0:00:15.1]} 28. Qf3 {[%clk 0:00:12.4]} 28... Qc2 {[%clk 0:00:12.3]}
29. h3 {[%clk 0:00:11.3]} 29... Qg6 {[%clk 0:00:08.4]} 30. g3 {[%clk 0:00:09.1]}
30... Kh7 {[%clk 0:00:07.3]} 31. Qg2 {[%clk 0:00:08]} 31... Bd5 {[%clk
0:00:07.2]} 32. Qf1 {[%clk 0:00:06.3]} 32... Qf5 {[%clk 0:00:06]} 33. Qe2 {[%clk
0:00:06.3]} 33... c6 {[%clk 0:00:04.3]} 34. f3 {[%clk 0:00:06.2]} 34... b5
{[%clk 0:00:04.2]} 35. g4 {[%clk 0:00:05.8]} 35... Qf4 {[%clk 0:00:04.2]} 36.
Qg2 {[%clk 0:00:06.1]} 36... Bc4 {[%clk 0:00:03.5]} 37. Kf2 {[%clk 0:00:05.8]}
37... Nd5 {[%clk 0:00:03.3]} 38. R3e2 {[%clk 0:00:05.1]} 38... Nxc3 {[%clk
0:00:03]} 39. Re3 {[%clk 0:00:04.7]} 39... Nd5 {[%clk 0:00:02.9]} 40. Qg3 {[%clk
0:00:04.3]} 40... Qxg3# {[%clk 0:00:02.5]} 0-1

[Event "Early-Titled-Tuesday-Blitz-January-23-2024"]
[Site "Chess.com"]
[Date "2024.01.23"]
[Round "2"]
[White "jhedigm"]
[Black "Mops_2004"]
[Result "0-1"]
[WhiteElo "2557"]
[BlackElo "2828"]
[TimeControl "180+1"]
[EndTime "8:17:53 PST"]
[Termination "Mops_2004 won by resignation"]

1. d4 {[%clk 0:03:00.9]} 1... g6 {[%clk 0:03:00.4]} 2. e4 {[%clk 0:02:59.2]}
2... Bg7 {[%clk 0:03:01]} 3. Nf3 {[%clk 0:02:56.5]} 3... d6 {[%clk 0:03:01.3]}
4. h3 {[%clk 0:02:56.4]} 4... Nf6 {[%clk 0:03:00.7]} 5. Nc3 {[%clk 0:02:56.6]}
5... O-O {[%clk 0:03:00.9]} 6. Be3 {[%clk 0:02:56.8]} 6... a6 {[%clk 0:02:59.8]}
7. a4 {[%clk 0:02:56.9]} 7... Nc6 {[%clk 0:02:59.5]} 8. Be2 {[%clk 0:02:55.4]}
8... Re8 {[%clk 0:02:57.5]} 9. d5 {[%clk 0:02:53.3]} 9... Ne5 {[%clk 0:02:55.9]}
10. Nd2 {[%clk 0:02:51.3]} 10... e6 {[%clk 0:02:53.4]} 11. O-O {[%clk
0:02:49.1]} 11... exd5 {[%clk 0:02:48.5]} 12. exd5 {[%clk 0:02:48.7]} 12... b6
{[%clk 0:02:43.7]} 13. Re1 {[%clk 0:02:44.9]} 13... Bb7 {[%clk 0:02:43.3]} 14.
Nb3 {[%clk 0:02:44.5]} 14... Ned7 {[%clk 0:02:38.3]} 15. Bf3 {[%clk 0:02:42.7]}
15... Ne5 {[%clk 0:02:34.6]} 16. Be2 {[%clk 0:02:42.5]} 16... Ned7 {[%clk
0:02:33.9]} 17. Bf3 {[%clk 0:02:25.1]} 17... Nc5 {[%clk 0:02:34]} 18. Nd4 {[%clk
0:02:23.4]} 18... Nce4 {[%clk 0:02:30.8]} 19. Nxe4 {[%clk 0:02:20.8]} 19... Nxe4
{[%clk 0:02:30.8]} 20. c4 {[%clk 0:02:20.9]} 20... a5 {[%clk 0:02:30.1]} 21. Qc2
{[%clk 0:02:15.1]} 21... Nc5 {[%clk 0:02:28.5]} 22. Rad1 {[%clk 0:02:14.4]}
22... Qh4 {[%clk 0:02:12.7]} 23. Nb5 {[%clk 0:02:09.1]} 23... Na6 {[%clk
0:02:11.5]} 24. b3 {[%clk 0:02:01.1]} 24... Re7 {[%clk 0:02:04.1]} 25. Bd2
{[%clk 0:01:46.3]} 25... Rae8 {[%clk 0:02:00.5]} 26. Rxe7 {[%clk 0:01:45.9]}
26... Rxe7 {[%clk 0:02:00.9]} 27. Re1 {[%clk 0:01:45.3]} 27... Bc8 {[%clk
0:01:55.2]} 28. Rxe7 {[%clk 0:01:44.7]} 28... Qxe7 {[%clk 0:01:55]} 29. Qe4
{[%clk 0:01:42.5]} 29... Qd8 {[%clk 0:01:51.2]} 30. Qe3 {[%clk 0:01:28.1]} 30...
Nc5 {[%clk 0:01:40.7]} 31. Bd1 {[%clk 0:01:12.9]} 31... Bd7 {[%clk 0:01:37.5]}
32. Nd4 {[%clk 0:01:09.3]} 32... h5 {[%clk 0:01:30]} 33. Bc3 {[%clk 0:01:07.9]}
33... Kh7 {[%clk 0:01:21]} 34. Bc2 {[%clk 0:01:07.6]} 34... Kg8 {[%clk
0:01:19.3]} 35. Kh2 {[%clk 0:00:48]} 35... Qh4 {[%clk 0:01:16.5]} 36. Nf3 {[%clk
0:00:40.6]} 36... Qd8 {[%clk 0:01:16.3]} 37. Bxg7 {[%clk 0:00:39.8]} 37... Kxg7
{[%clk 0:01:17.2]} 38. Nd2 {[%clk 0:00:32.6]} 38... h4 {[%clk 0:01:10.6]} 39.
Ne4 {[%clk 0:00:28.7]} 39... Nxe4 {[%clk 0:01:10.3]} 40. Bxe4 {[%clk 0:00:26.3]}
40... Qf6 {[%clk 0:01:08.9]} 41. f4 {[%clk 0:00:23.7]} 41... Kf8 {[%clk
0:00:56.7]} 42. g4 {[%clk 0:00:18.5]} 42... hxg3+ {[%clk 0:00:55.3]} 43. Kxg3
{[%clk 0:00:18.6]} 43... Qa1 {[%clk 0:00:50.5]} 44. h4 {[%clk 0:00:17.6]} 44...
Qd1 {[%clk 0:00:46.8]} 45. Bf3 {[%clk 0:00:16.6]} 45... Qa1 {[%clk 0:00:45.8]}
46. Bg2 {[%clk 0:00:16.6]} 46... Bf5 {[%clk 0:00:44.2]} 47. Bf3 {[%clk 0:00:16]}
47... Qb2 {[%clk 0:00:41.6]} 48. h5 {[%clk 0:00:16.2]} 48... gxh5 {[%clk
0:00:38.2]} 49. Bxh5 {[%clk 0:00:16.3]} 49... Bc2 {[%clk 0:00:35.2]} 50. Kh4
{[%clk 0:00:14.8]} 50... Qf6+ {[%clk 0:00:27]} 51. Kg3 {[%clk 0:00:14.9]} 51...
Qg7+ {[%clk 0:00:27]} 52. Bg4 {[%clk 0:00:14.9]} 52... f5 {[%clk 0:00:25.8]} 53.
Kf2 {[%clk 0:00:15.8]} 53... Qxg4 {[%clk 0:00:25.3]} 0-1

[Event "Early-Titled-Tuesday-Blitz-January-23-2024"]
[Site "Chess.com"]
[Date "2024.01.23"]
[Round "2"]
[White "Smiechu"]
[Black "karenzc"]
[Result "1-0"]
[WhiteElo "2479"]
[BlackElo "2185"]
[TimeControl "180+1"]
[EndTime "8:17:56 PST"]
[Termination "Smiechu won by checkmate"]

1. e4 {[%clk 0:02:56.9]} 1... c5 {[%clk 0:02:59.8]} 2. Nf3 {[%clk 0:02:55.8]}
2... Nc6 {[%clk 0:02:59.8]} 3. d4 {[%clk 0:02:55.5]} 3... cxd4 {[%clk
0:02:59.6]} 4. Nxd4 {[%clk 0:02:55]} 4... g6 {[%clk 0:02:58.7]} 5. Nc3 {[%clk
0:02:54.6]} 5... Bg7 {[%clk 0:02:58.8]} 6. Be3 {[%clk 0:02:54.2]} 6... Nf6
{[%clk 0:02:59.2]} 7. Bc4 {[%clk 0:02:53.6]} 7... d6 {[%clk 0:02:58.8]} 8. f3
{[%clk 0:02:53.1]} 8... O-O {[%clk 0:02:58.6]} 9. Qd2 {[%clk 0:02:49.7]} 9...
Re8 {[%clk 0:02:54.7]} 10. h4 {[%clk 0:02:48.6]} 10... Qa5 {[%clk 0:02:52.4]}
11. O-O-O {[%clk 0:02:37.9]} 11... Ne5 {[%clk 0:02:49.1]} 12. Bb3 {[%clk
0:02:36.9]} 12... a6 {[%clk 0:02:47.6]} 13. h5 {[%clk 0:02:32.8]} 13... Nxh5
{[%clk 0:02:27.6]} 14. g4 {[%clk 0:02:32.4]} 14... Nf6 {[%clk 0:02:25.5]} 15.
Qh2 {[%clk 0:02:25.8]} 15... e6 {[%clk 0:02:04.8]} 16. Rhg1 {[%clk 0:01:52.3]}
16... Bd7 {[%clk 0:02:01.6]} 17. g5 {[%clk 0:01:52.1]} 17... Nh5 {[%clk
0:02:01.6]} 18. f4 {[%clk 0:01:52.2]} 18... Nc6 {[%clk 0:01:58.8]} 19. f5 {[%clk
0:01:37.5]} 19... exf5 {[%clk 0:01:57.4]} 20. exf5 {[%clk 0:01:16.3]} 20... Rxe3
{[%clk 0:01:48.2]} 21. fxg6 {[%clk 0:01:12.1]} 21... hxg6 {[%clk 0:01:43.9]} 22.
Qxd6 {[%clk 0:01:08.9]} 22... Nxd4 {[%clk 0:01:29.9]} 23. Rxd4 {[%clk
0:01:05.8]} 23... Bf5 {[%clk 0:01:23.6]} 24. Rd5 {[%clk 0:00:54.5]} 24... Bxc3
{[%clk 0:00:46.7]} 25. Rxa5 {[%clk 0:00:52.6]} 25... Bxa5 {[%clk 0:00:45.6]} 26.
Qc5 {[%clk 0:00:48.4]} 26... Re1+ {[%clk 0:00:45.4]} 27. Rxe1 {[%clk 0:00:47.7]}
27... Bxe1 {[%clk 0:00:45.8]} 28. Qc7 {[%clk 0:00:38]} 28... Rf8 {[%clk
0:00:45.4]} 29. Qxb7 {[%clk 0:00:36.9]} 29... Bg3 {[%clk 0:00:42.5]} 30. c4
{[%clk 0:00:27.7]} 30... Bf4+ {[%clk 0:00:42]} 31. Kd1 {[%clk 0:00:27.3]} 31...
Bg4+ {[%clk 0:00:33.6]} 32. Kc2 {[%clk 0:00:26.4]} 32... Bf5+ {[%clk 0:00:27.9]}
33. Kc3 {[%clk 0:00:26.5]} 33... a5 {[%clk 0:00:26.5]} 34. c5 {[%clk 0:00:20.8]}
34... Be5+ {[%clk 0:00:25.7]} 35. Kd2 {[%clk 0:00:20.2]} 35... Rd8+ {[%clk
0:00:25.1]} 36. Ke3 {[%clk 0:00:17.5]} 36... Rd3+ {[%clk 0:00:24.3]} 37. Ke2
{[%clk 0:00:16.9]} 37... Nf4+ {[%clk 0:00:22]} 38. Kf2 {[%clk 0:00:17.1]} 38...
Ne6 {[%clk 0:00:19.3]} 39. Bxe6 {[%clk 0:00:16]} 39... Bxe6 {[%clk 0:00:19.4]}
40. c6 {[%clk 0:00:15.7]} 40... Rd2+ {[%clk 0:00:18.6]} 41. Ke3 {[%clk
0:00:15.5]} 41... Rxb2 {[%clk 0:00:19.1]} 42. Qa8+ {[%clk 0:00:12.9]} 42... Kg7
{[%clk 0:00:19.6]} 43. Qxa5 {[%clk 0:00:13.2]} 43... Rc2 {[%clk 0:00:19.5]} 44.
Qxe5+ {[%clk 0:00:13]} 44... Kf8 {[%clk 0:00:19.8]} 45. c7 {[%clk 0:00:13.2]}
45... Ke7 {[%clk 0:00:19.8]} 46. a4 {[%clk 0:00:12.4]} 46... Ra2 {[%clk
0:00:19.2]} 47. Qc5+ {[%clk 0:00:12]} 47... Kd7 {[%clk 0:00:19]} 48. a5 {[%clk
0:00:12.6]} 48... Ra3+ {[%clk 0:00:18.4]} 49. Kd4 {[%clk 0:00:12.4]} 49... Ra4+
{[%clk 0:00:18.4]} 50. Ke5 {[%clk 0:00:12.5]} 50... Rc4 {[%clk 0:00:18.4]} 51.
c8=Q# {[%clk 0:00:11.7]} 1-0

[Event "Early-Titled-Tuesday-Blitz-January-23-2024"]
[Site "Chess.com"]
[Date "2024.01.23"]
[Round "2"]
[White "rhungaski"]
[Black "invisible_s0ul"]
[Result "1-0"]
[WhiteElo "2505"]
[BlackElo "2248"]
[TimeControl "180+1"]
[EndTime "8:17:57 PST"]
[Termination "rhungaski won by resignation"]

1. e4 {[%clk 0:02:56.4]} 1... c5 {[%clk 0:02:59.1]} 2. Nf3 {[%clk 0:02:56]} 2...
Nc6 {[%clk 0:02:58.5]} 3. d4 {[%clk 0:02:56.2]} 3... cxd4 {[%clk 0:02:59.4]} 4.
Nxd4 {[%clk 0:02:56.9]} 4... Nf6 {[%clk 0:02:59.3]} 5. Nc3 {[%clk 0:02:57.1]}
5... e6 {[%clk 0:02:59.8]} 6. Ndb5 {[%clk 0:02:55.2]} 6... Bb4 {[%clk
0:02:57.7]} 7. a3 {[%clk 0:02:55.2]} 7... Bxc3+ {[%clk 0:02:57.5]} 8. Nxc3
{[%clk 0:02:56.1]} 8... d5 {[%clk 0:02:57.5]} 9. exd5 {[%clk 0:02:54.4]} 9...
exd5 {[%clk 0:02:52.9]} 10. Bd3 {[%clk 0:02:54.7]} 10... d4 {[%clk 0:02:48.5]}
11. Ne2 {[%clk 0:02:52.2]} 11... Bg4 {[%clk 0:02:49.1]} 12. O-O {[%clk
0:02:46.4]} 12... O-O {[%clk 0:02:49]} 13. Bg5 {[%clk 0:02:26.7]} 13... Qd6
{[%clk 0:02:45.7]} 14. Qd2 {[%clk 0:02:24.2]} 14... Rfe8 {[%clk 0:02:36.5]} 15.
Ng3 {[%clk 0:02:22]} 15... Ne5 {[%clk 0:02:13]} 16. Rae1 {[%clk 0:02:15.8]}
16... Nd5 {[%clk 0:01:37.1]} 17. Be4 {[%clk 0:02:00.1]} 17... f6 {[%clk
0:01:30.7]} 18. Qxd4 {[%clk 0:01:57.2]} 18... Be6 {[%clk 0:00:48.5]} 19. Bc1
{[%clk 0:01:47.9]} 19... Rad8 {[%clk 0:00:41.3]} 20. Rd1 {[%clk 0:01:46.9]}
20... Nc6 {[%clk 0:00:33.5]} 21. Qd3 {[%clk 0:01:46]} 21... h6 {[%clk
0:00:24.2]} 22. Bg6 {[%clk 0:01:19.2]} 22... Ne5 {[%clk 0:00:18.7]} 23. Qe4
{[%clk 0:01:06.7]} 23... Nxg6 {[%clk 0:00:14.9]} 24. Qxg6 {[%clk 0:01:07.6]}
24... Bf7 {[%clk 0:00:11]} 25. Qg4 {[%clk 0:01:05.9]} 25... Qe5 {[%clk
0:00:06.8]} 26. Nf5 {[%clk 0:00:46.9]} 26... g6 {[%clk 0:00:07.2]} 27. Nxh6+
{[%clk 0:00:43.4]} 27... Kg7 {[%clk 0:00:07.6]} 28. Nxf7 {[%clk 0:00:41.2]}
28... Kxf7 {[%clk 0:00:08.5]} 29. h3 {[%clk 0:00:38.3]} 29... Nb6 {[%clk
0:00:02.3]} 30. Qf3 {[%clk 0:00:31.8]} 30... Rd6 {[%clk 0:00:01.7]} 31. Rxd6
{[%clk 0:00:27.9]} 31... Qxd6 {[%clk 0:00:02.6]} 32. Qxb7+ {[%clk 0:00:28.2]}
32... Re7 {[%clk 0:00:03.4]} 33. Qa6 {[%clk 0:00:26.6]} 33... Qe5 {[%clk
0:00:03.8]} 34. b3 {[%clk 0:00:23.1]} 34... Nd5 {[%clk 0:00:04.3]} 35. Qd3
{[%clk 0:00:20.6]} 35... Nf4 {[%clk 0:00:03.4]} 36. Bxf4 {[%clk 0:00:20.1]}
36... Qxf4 {[%clk 0:00:04.3]} 37. g3 {[%clk 0:00:20.2]} 37... Qe5 {[%clk
0:00:04.3]} 38. h4 {[%clk 0:00:19.9]} 38... Kg7 {[%clk 0:00:04.9]} 39. Rd1
{[%clk 0:00:18.9]} 39... Qb2 {[%clk 0:00:05]} 40. a4 {[%clk 0:00:18.3]} 40...
Qe5 {[%clk 0:00:04.8]} 41. Qd8 {[%clk 0:00:17.8]} 41... Qe2 {[%clk 0:00:05]} 42.
Rd7 {[%clk 0:00:16.5]} 42... Qe1+ {[%clk 0:00:05.3]} 43. Kg2 {[%clk 0:00:17]}
43... Qe4+ {[%clk 0:00:05.9]} 44. Kh2 {[%clk 0:00:17.6]} 44... Rxd7 {[%clk
0:00:04]} 45. Qxd7+ {[%clk 0:00:18.5]} 45... Kh6 {[%clk 0:00:04.7]} 46. Qxa7
{[%clk 0:00:17.1]} 46... Qf3 {[%clk 0:00:04.5]} 47. Qe3+ {[%clk 0:00:18]} 1-0

[Event "Early-Titled-Tuesday-Blitz-January-23-2024"]
[Site "Chess.com"]
[Date "2024.01.23"]
[Round "2"]
[White "jkidjr22"]
[Black "jraosam"]
[Result "0-1"]
[WhiteElo "2383"]
[BlackElo "1924"]
[TimeControl "180+1"]
[EndTime "8:17:57 PST"]
[Termination "jraosam won by resignation"]

1. d4 {[%clk 0:02:57.5]} 1... d5 {[%clk 0:02:53.4]} 2. Bf4 {[%clk 0:02:57.9]}
2... Nf6 {[%clk 0:02:51.8]} 3. e3 {[%clk 0:02:57.2]} 3... c5 {[%clk 0:02:49.3]}
4. Nc3 {[%clk 0:02:56.2]} 4... Qb6 {[%clk 0:02:46]} 5. Nb5 {[%clk 0:02:52.6]}
5... Na6 {[%clk 0:02:43.7]} 6. a4 {[%clk 0:02:47.4]} 6... Bd7 {[%clk 0:02:35.2]}
7. Nf3 {[%clk 0:02:46.4]} 7... e6 {[%clk 0:02:31.2]} 8. Ne5 {[%clk 0:02:45.9]}
8... Be7 {[%clk 0:02:24.7]} 9. Nxd7 {[%clk 0:02:39.6]} 9... Nxd7 {[%clk
0:02:22.7]} 10. Qg4 {[%clk 0:02:40.2]} 10... g6 {[%clk 0:02:19.6]} 11. h4 {[%clk
0:02:39.1]} 11... h5 {[%clk 0:02:18.2]} 12. Qg3 {[%clk 0:02:39]} 12... Nf6
{[%clk 0:01:58.5]} 13. Bc7 {[%clk 0:02:02]} 13... Nxc7 {[%clk 0:01:47]} 14.
Nxc7+ {[%clk 0:02:01.4]} 14... Kd7 {[%clk 0:01:45.3]} 15. Nxa8 {[%clk 0:02:02]}
15... Rxa8 {[%clk 0:01:42.1]} 16. Bb5+ {[%clk 0:02:00.5]} 16... Kd8 {[%clk
0:01:40.5]} 17. O-O {[%clk 0:01:57.7]} 17... cxd4 {[%clk 0:01:39]} 18. exd4
{[%clk 0:01:57.3]} 18... Qxd4 {[%clk 0:01:39.6]} 19. Rad1 {[%clk 0:01:55.8]}
19... Qb4 {[%clk 0:01:36.3]} 20. c4 {[%clk 0:01:55.1]} 20... a6 {[%clk 0:01:30]}
21. cxd5 {[%clk 0:01:54.8]} 21... axb5 {[%clk 0:01:29.4]} 22. dxe6+ {[%clk
0:01:54.8]} 22... Ke8 {[%clk 0:01:28.1]} 23. axb5 {[%clk 0:01:43.3]} 23... Qxb5
{[%clk 0:01:25.5]} 24. Rfe1 {[%clk 0:01:41.7]} 24... fxe6 {[%clk 0:01:23.8]} 25.
Qxg6+ {[%clk 0:01:40.4]} 25... Kf8 {[%clk 0:01:21.9]} 26. Rxe6 {[%clk
0:01:41.3]} 26... Qxb2 {[%clk 0:01:14.3]} 27. Rde1 {[%clk 0:01:18.8]} 27... Re8
{[%clk 0:01:11.5]} 28. Qh6+ {[%clk 0:01:18.6]} 28... Kf7 {[%clk 0:01:10.7]} 29.
Rxf6+ {[%clk 0:01:18.4]} 29... Qxf6 {[%clk 0:01:08.2]} 30. Qxh5+ {[%clk
0:01:18.3]} 30... Qg6 {[%clk 0:01:07.6]} 31. Qd5+ {[%clk 0:01:17.9]} 31... Kg7
{[%clk 0:01:06.4]} 32. Re6 {[%clk 0:01:12.5]} 32... Qf7 {[%clk 0:00:51.9]} 33.
Qe4 {[%clk 0:00:55.1]} 33... Kf8 {[%clk 0:00:47.8]} 34. Rh6 {[%clk 0:00:48.6]}
34... Bf6 {[%clk 0:00:44.5]} 35. Qb4+ {[%clk 0:00:38.4]} 35... Kg7 {[%clk
0:00:43]} 36. Qd2 {[%clk 0:00:08.6]} 36... Qe7 {[%clk 0:00:41.9]} 37. Rh5 {[%clk
0:00:02.5]} 37... Qe1+ {[%clk 0:00:42.1]} 38. Qxe1 {[%clk 0:00:02.9]} 38...
Rxe1+ {[%clk 0:00:42]} 39. Kh2 {[%clk 0:00:03.8]} 39... Re5 {[%clk 0:00:41.5]}
40. Rxe5 {[%clk 0:00:01.5]} 40... Bxe5+ {[%clk 0:00:42.4]} 41. Kh3 {[%clk
0:00:02.2]} 41... b5 {[%clk 0:00:42.5]} 42. Kg4 {[%clk 0:00:03.1]} 42... b4
{[%clk 0:00:42.3]} 43. Kf5 {[%clk 0:00:03.8]} 43... b3 {[%clk 0:00:41.5]} 44.
Kxe5 {[%clk 0:00:04.4]} 44... b2 {[%clk 0:00:41.2]} 45. Kf4 {[%clk 0:00:05.1]}
45... b1=Q {[%clk 0:00:41.8]} 46. g4 {[%clk 0:00:05.8]} 46... Qb4+ {[%clk
0:00:41.6]} 47. Kg3 {[%clk 0:00:05.5]} 47... Qd6+ {[%clk 0:00:39.6]} 48. Kg2
{[%clk 0:00:04.3]} 48... Qf4 {[%clk 0:00:39.3]} 49. f3 {[%clk 0:00:04.3]} 49...
Kg6 {[%clk 0:00:39.4]} 50. Kf2 {[%clk 0:00:04.6]} 50... Qh2+ {[%clk 0:00:38.6]}
51. Ke3 {[%clk 0:00:04.9]} 51... Qxh4 {[%clk 0:00:39.5]} 0-1